[Event "Titled Tuesday Blitz July 11 Late 2023"]
[White "Karttunen, Mika"]
[Black "Melikhov, Evgeny V."]
[WhiteFideId "502081"]
[BlackFideId "4122046"]
[WhiteElo "2545"]
[BlackElo "2414"]
[Result "1-0"]
[Round "9"]
[TimeControl "180+2"]
[Date "2023.07.11"]
[WhiteClock "0:00:21"]
[BlackClock "0:00:00"]
[Board "66"]

1. e4 {[%clk 0:03:00]}  e5 {[%clk 0:02:56]} 2. Nf3 {[%clk 0:03:00]}  Nc6 {[%clk 0:02:56]} 3. Bb5 {[%clk 0:03:00]}  a6 {[%clk 0:02:56]} 4. Ba4 {[%clk 0:03:00]}  Nf6 {[%clk 0:02:56]} 5. O-O {[%clk 0:02:59]}  Nxe4 {[%clk 0:02:56]} 6. d4 {[%clk 0:02:57]}  b5 {[%clk 0:02:55]} 7. Bb3 {[%clk 0:02:56]}  d5 {[%clk 0:02:56]} 8. dxe5 {[%clk 0:02:55]}  Be6 {[%clk 0:02:57]} 9. Nbd2 {[%clk 0:02:48]}  Bc5 {[%clk 0:02:56]} 10. c3 {[%clk 0:02:42]}  O-O {[%clk 0:02:52]} 11. Qe2 {[%clk 0:02:42]}  Bf5 {[%clk 0:02:51]} 12. a4 {[%clk 0:02:28]}  Nxd2 {[%clk 0:02:35]} 13. Bxd2 {[%clk 0:02:26]}  Na5 {[%clk 0:02:34]} 14. Bd1 {[%clk 0:02:14]}  Nc4 {[%clk 0:02:33]} 15. Bf4 {[%clk 0:02:06]}  c6 {[%clk 0:02:23]} 16. b3 {[%clk 0:02:02]}  Nb6 {[%clk 0:02:22]} 17. a5 {[%clk 0:01:48]}  Nd7 {[%clk 0:02:21]} 18. b4 {[%clk 0:01:48]}  Ba7 {[%clk 0:02:16]} 19. Nd4 {[%clk 0:01:46]}  Rc8 {[%clk 0:02:12]} 20. Nxf5 {[%clk 0:01:46]}  c5 {[%clk 0:01:37]} 21. Qg4 {[%clk 0:01:37]}  g6 {[%clk 0:01:34]} 22. Bg5 {[%clk 0:01:20]}  f6 {[%clk 0:01:32]} 23. Nh6+ {[%clk 0:00:58]}  Kh8 {[%clk 0:01:30]} 24. exf6 {[%clk 0:00:58]}  Nxf6 {[%clk 0:01:30]} 25. Qh4 {[%clk 0:00:57]}  Qd6 {[%clk 0:01:20]} 26. Bf3 {[%clk 0:00:51]}  cxb4 {[%clk 0:01:15]} 27. cxb4 {[%clk 0:00:51]}  Rc4 {[%clk 0:01:15]} 28. Qg3 {[%clk 0:00:47]}  Qxg3 {[%clk 0:01:07]} 29. hxg3 {[%clk 0:00:47]}  Ne4 {[%clk 0:01:07]} 30. Bxe4 {[%clk 0:00:42]}  dxe4 {[%clk 0:01:07]} 31. Ng4 {[%clk 0:00:37]}  Rc2 {[%clk 0:00:58]} 32. Be3 {[%clk 0:00:36]}  Bxe3 {[%clk 0:00:54]} 33. fxe3 {[%clk 0:00:35]}  Rd8 {[%clk 0:00:46]} 34. Rad1 {[%clk 0:00:34]}  Rd3 {[%clk 0:00:46]} 35. Rxd3 {[%clk 0:00:34]}  exd3 {[%clk 0:00:46]} 36. Rd1 {[%clk 0:00:34]}  d2 {[%clk 0:00:46]} 37. Kf2 {[%clk 0:00:33]}  Rb2 {[%clk 0:00:46]} 38. Ke2 {[%clk 0:00:31]}  Rxb4 {[%clk 0:00:47]} 39. Ne5 {[%clk 0:00:31]}  Ra4 {[%clk 0:00:45]} 40. Nc6 {[%clk 0:00:31]}  Rc4 {[%clk 0:00:44]} 41. Nb8 {[%clk 0:00:31]}  Rg4 {[%clk 0:00:40]} 42. Nxa6 {[%clk 0:00:31]}  Rxg3 {[%clk 0:00:40]} 43. Kf2 {[%clk 0:00:31]}  Rg5 {[%clk 0:00:38]} 44. Nb4 {[%clk 0:00:30]}  Rg4 {[%clk 0:00:34]} 45. Nc6 {[%clk 0:00:26]}  Rc4 {[%clk 0:00:32]} 46. Nd4 {[%clk 0:00:26]}  Ra4 {[%clk 0:00:32]} 47. Nxb5 {[%clk 0:00:26]}  Rxa5 {[%clk 0:00:32]} 48. Nd4 {[%clk 0:00:26]}  Ra2 {[%clk 0:00:31]} 49. Nf3 {[%clk 0:00:26]}  Kg7 {[%clk 0:00:31]} 50. Rxd2 {[%clk 0:00:27]}  Ra1 {[%clk 0:00:31]} 51. e4 {[%clk 0:00:26]}  Kf6 {[%clk 0:00:29]} 52. Rd6+ {[%clk 0:00:26]}  Ke7 {[%clk 0:00:29]} 53. Rb6 {[%clk 0:00:26]}  Ra7 {[%clk 0:00:25]} 54. Kg3 {[%clk 0:00:24]}  Kf7 {[%clk 0:00:25]} 55. Kf4 {[%clk 0:00:24]}  h6 {[%clk 0:00:23]} 56. g4 {[%clk 0:00:22]}  g5+ {[%clk 0:00:22]} 57. Kg3 {[%clk 0:00:23]}  Ra3 {[%clk 0:00:22]} 58. Rxh6 {[%clk 0:00:21]}  Kg7 {[%clk 0:00:22]} 59. Re6 {[%clk 0:00:21]}  Kf7 {[%clk 0:00:22]} 60. Re5 {[%clk 0:00:21]}  Kf6 {[%clk 0:00:20]} 61. Rf5+ {[%clk 0:00:22]}  Ke6 {[%clk 0:00:21]} 62. Rxg5 {[%clk 0:00:22]}  Re3 {[%clk 0:00:21]} 63. e5 {[%clk 0:00:22]}  Re4 {[%clk 0:00:20]} 64. Rf5 {[%clk 0:00:22]}  Ke7 {[%clk 0:00:20]} 65. Rf4 {[%clk 0:00:22]}  Re2 {[%clk 0:00:19]} 66. g5 {[%clk 0:00:23]}  Ra2 {[%clk 0:00:19]} 67. g6 {[%clk 0:00:23]}  Ra6 {[%clk 0:00:18]} 68. Rg4 {[%clk 0:00:23]}  Kf8 {[%clk 0:00:18]} 69. Nh4 {[%clk 0:00:23]}  Kg7 {[%clk 0:00:16]} 70. Nf5+ {[%clk 0:00:23]}  Kg8 {[%clk 0:00:16]} 71. Kf4 {[%clk 0:00:23]}  Ra4+ {[%clk 0:00:16]} 72. Kg5 {[%clk 0:00:23]}  Ra7 {[%clk 0:00:15]} 73. e6 {[%clk 0:00:23]}  Rb7 {[%clk 0:00:12]} 74. e7 {[%clk 0:00:23]}  Rb8 {[%clk 0:00:13]} 75. Re4 {[%clk 0:00:23]}  Re8 {[%clk 0:00:11]} 76. Kf6 {[%clk 0:00:23]}  Kh8 {[%clk 0:00:05]} 77. Kf7 {[%clk 0:00:20]}  Rxe7+ {[%clk 0:00:02]} 78. Kxe7 {[%clk 0:00:20]}  Kg8 {[%clk 0:00:02]} 79. Kf6 {[%clk 0:00:21]}  Kf8 {[%clk 0:00:00]} 80. Re5 {[%clk 0:00:21]} 1-0


[Site "https://www.chess.com"]

[Event "Titled Tuesday Blitz July 11 Late 2023"]
[White "dodoucb"]
[Black "Michalczak, Thomas"]
[BlackFideId "4622634"]
[WhiteElo "2390"]
[BlackElo "2524"]
[Result "0-1"]
[Round "9"]
[TimeControl "180+2"]
[Date "2023.07.11"]
[WhiteClock "0:00:01"]
[BlackClock "0:00:30"]
[Board "72"]

1. d4 {[%clk 0:02:56]}  Nf6 {[%clk 0:02:59]} 2. c4 {[%clk 0:02:55]}  e6 {[%clk 0:02:57]} 3. Nc3 {[%clk 0:02:55]}  d5 {[%clk 0:02:56]} 4. Bg5 {[%clk 0:02:49]}  Nbd7 {[%clk 0:02:55]} 5. e3 {[%clk 0:02:47]}  c6 {[%clk 0:02:54]} 6. Nf3 {[%clk 0:02:44]}  Qa5 {[%clk 0:02:53]} 7. Nd2 {[%clk 0:02:31]}  Bb4 {[%clk 0:02:51]} 8. Qc2 {[%clk 0:02:26]}  O-O {[%clk 0:02:48]} 9. Bh4 {[%clk 0:02:10]}  b5 {[%clk 0:02:35]} 10. cxb5 {[%clk 0:01:25]}  cxb5 {[%clk 0:02:24]} 11. Bd3 {[%clk 0:01:25]}  a6 {[%clk 0:02:17]} 12. O-O {[%clk 0:01:24]}  Bb7 {[%clk 0:02:15]} 13. Nb3 {[%clk 0:01:14]}  Qb6 {[%clk 0:02:03]} 14. a3 {[%clk 0:01:11]}  Bd6 {[%clk 0:02:02]} 15. Rac1 {[%clk 0:01:06]}  Rac8 {[%clk 0:02:01]} 16. Qe2 {[%clk 0:01:04]}  e5 {[%clk 0:01:48]} 17. Bf5 {[%clk 0:01:04]}  Rc4 {[%clk 0:01:38]} 18. Nd2 {[%clk 0:00:56]}  Rc7 {[%clk 0:01:33]} 19. Nf3 {[%clk 0:00:56]}  e4 {[%clk 0:01:27]} 20. Ne5 {[%clk 0:00:39]}  Nxe5 {[%clk 0:01:23]} 21. Bxf6 {[%clk 0:00:37]}  Ng6 {[%clk 0:01:13]} 22. Bxg6 {[%clk 0:00:37]}  fxg6 {[%clk 0:01:07]} 23. Bh4 {[%clk 0:00:36]}  Bc6 {[%clk 0:00:45]} 24. Qg4 {[%clk 0:00:28]}  Rf5 {[%clk 0:00:41]} 25. Bd8 {[%clk 0:00:21]}  Bd7 {[%clk 0:00:31]} 26. Bxc7 {[%clk 0:00:20]}  Qxc7 {[%clk 0:00:32]} 27. Qe2 {[%clk 0:00:10]}  Bxh2+ {[%clk 0:00:31]} 28. Kh1 {[%clk 0:00:10]}  Rh5 {[%clk 0:00:32]} 29. g4 {[%clk 0:00:01]}  Bg1+ {[%clk 0:00:30]} 0-1


[Site "https://www.chess.com"]

[Event "Titled Tuesday Blitz July 11 Late 2023"]
[White "Slovineanu, Viacheslav"]
[Black "Osmak, Yuliia"]
[WhiteFideId "13900510"]
[BlackFideId "14101602"]
[WhiteElo "2385"]
[BlackElo "2518"]
[Result "1/2-1/2"]
[Round "9"]
[TimeControl "180+2"]
[Date "2023.07.11"]
[WhiteClock "0:00:03"]
[BlackClock "0:00:00"]
[Board "73"]

1. d4 {[%clk 0:02:55]}  Nf6 {[%clk 0:02:57]} 2. Nf3 {[%clk 0:02:51]}  d5 {[%clk 0:02:55]} 3. c4 {[%clk 0:02:51]}  e6 {[%clk 0:02:54]} 4. e3 {[%clk 0:02:51]}  c5 {[%clk 0:02:46]} 5. cxd5 {[%clk 0:02:51]}  exd5 {[%clk 0:02:44]} 6. Bb5+ {[%clk 0:02:50]}  Nc6 {[%clk 0:02:43]} 7. O-O {[%clk 0:02:49]}  Bg4 {[%clk 0:02:38]} 8. h3 {[%clk 0:02:28]}  Bh5 {[%clk 0:02:28]} 9. Qa4 {[%clk 0:01:49]}  Qb6 {[%clk 0:02:04]} 10. Ne5 {[%clk 0:01:30]}  Rc8 {[%clk 0:02:03]} 11. Nc3 {[%clk 0:00:55]}  Bd6 {[%clk 0:01:50]} 12. dxc5 {[%clk 0:00:36]}  Qxc5 {[%clk 0:01:46]} 13. Nd3 {[%clk 0:00:30]}  Qb6 {[%clk 0:01:45]} 14. Nf4 {[%clk 0:00:23]}  Bxf4 {[%clk 0:01:31]} 15. exf4 {[%clk 0:00:23]}  O-O {[%clk 0:01:19]} 16. g4 {[%clk 0:00:20]}  Nxg4 {[%clk 0:01:08]} 17. hxg4 {[%clk 0:00:20]}  Bxg4 {[%clk 0:01:07]} 18. Be2 {[%clk 0:00:18]}  Bxe2 {[%clk 0:00:54]} 19. Nxe2 {[%clk 0:00:18]}  Nb4 {[%clk 0:00:53]} 20. Be3 {[%clk 0:00:16]}  Qg6+ {[%clk 0:00:45]} 21. Ng3 {[%clk 0:00:15]}  Nc2 {[%clk 0:00:44]} 22. f5 {[%clk 0:00:16]}  Qf6 {[%clk 0:00:33]} 23. Rac1 {[%clk 0:00:15]}  Qxb2 {[%clk 0:00:30]} 24. Qb3 {[%clk 0:00:14]}  Qxb3 {[%clk 0:00:24]} 25. axb3 {[%clk 0:00:15]}  d4 {[%clk 0:00:24]} 26. Bf4 {[%clk 0:00:13]}  d3 {[%clk 0:00:20]} 27. Rfd1 {[%clk 0:00:13]}  Rfd8 {[%clk 0:00:18]} 28. Ne4 {[%clk 0:00:13]}  Nd4 {[%clk 0:00:15]} 29. Rxc8 {[%clk 0:00:12]}  Rxc8 {[%clk 0:00:16]} 30. Kf1 {[%clk 0:00:11]}  Ne2 {[%clk 0:00:14]} 31. Be3 {[%clk 0:00:10]}  Nc3 {[%clk 0:00:14]} 32. Rxd3 {[%clk 0:00:09]}  Nxe4 {[%clk 0:00:13]} 33. Bxa7 {[%clk 0:00:10]}  h5 {[%clk 0:00:12]} 34. Rd7 {[%clk 0:00:09]}  b5 {[%clk 0:00:11]} 35. Rb7 {[%clk 0:00:08]}  Nd2+ {[%clk 0:00:09]} 36. Kg2 {[%clk 0:00:08]}  Nxb3 {[%clk 0:00:09]} 37. Rxb5 {[%clk 0:00:08]}  Nd2 {[%clk 0:00:09]} 38. Be3 {[%clk 0:00:07]}  Ne4 {[%clk 0:00:09]} 39. Re5 {[%clk 0:00:06]}  Nf6 {[%clk 0:00:09]} 40. Ra5 {[%clk 0:00:05]}  Re8 {[%clk 0:00:08]} 41. Bg5 {[%clk 0:00:05]}  Ng4 {[%clk 0:00:08]} 42. f3 {[%clk 0:00:05]}  Ne5 {[%clk 0:00:07]} 43. Kg3 {[%clk 0:00:05]}  f6 {[%clk 0:00:07]} 44. Bf4 {[%clk 0:00:05]}  Nd3 {[%clk 0:00:07]} 45. Bd6 {[%clk 0:00:04]}  Rd8 {[%clk 0:00:06]} 46. Ra6 {[%clk 0:00:04]}  Rd7 {[%clk 0:00:06]} 47. Kh4 {[%clk 0:00:04]}  Kh7 {[%clk 0:00:06]} 48. Kxh5 {[%clk 0:00:04]}  Ne1 {[%clk 0:00:06]} 49. Kg4 {[%clk 0:00:04]}  Nc2 {[%clk 0:00:05]} 50. Kf4 {[%clk 0:00:04]}  Nd4 {[%clk 0:00:05]} 51. Ke4 {[%clk 0:00:04]}  Ne2 {[%clk 0:00:05]} 52. Kd5 {[%clk 0:00:03]}  Nc3+ {[%clk 0:00:04]} 53. Ke6 {[%clk 0:00:03]}  Rb7 {[%clk 0:00:04]} 54. Rc6 {[%clk 0:00:03]}  Ne2 {[%clk 0:00:03]} 55. Rc7 {[%clk 0:00:03]}  Nd4+ {[%clk 0:00:03]} 56. Kd5 {[%clk 0:00:02]}  Rxc7 {[%clk 0:00:04]} 57. Bxc7 {[%clk 0:00:03]}  Nxf5 {[%clk 0:00:04]} 58. Ke4 {[%clk 0:00:03]}  Nh4 {[%clk 0:00:04]} 59. Kf4 {[%clk 0:00:03]}  Ng6+ {[%clk 0:00:04]} 60. Kf5 {[%clk 0:00:03]}  Ne7+ {[%clk 0:00:05]} 61. Kg4 {[%clk 0:00:04]}  Kg6 {[%clk 0:00:04]} 62. f4 {[%clk 0:00:03]}  f5+ {[%clk 0:00:05]} 63. Kf3 {[%clk 0:00:04]}  Nd5 {[%clk 0:00:05]} 64. Bb8 {[%clk 0:00:03]}  Kf7 {[%clk 0:00:05]} 65. Be5 {[%clk 0:00:03]}  Kg6 {[%clk 0:00:05]} 66. Bb8 {[%clk 0:00:03]}  Kh6 {[%clk 0:00:06]} 67. Ba7 {[%clk 0:00:03]}  g6 {[%clk 0:00:06]} 68. Bb8 {[%clk 0:00:03]}  Kh5 {[%clk 0:00:07]} 69. Bd6 {[%clk 0:00:03]}  Nf6 {[%clk 0:00:06]} 70. Be5 {[%clk 0:00:03]}  Ng4 {[%clk 0:00:06]} 71. Bd6 {[%clk 0:00:03]}  Nh2+ {[%clk 0:00:06]} 72. Kg3 {[%clk 0:00:03]}  Ng4 {[%clk 0:00:07]} 73. Bc7 {[%clk 0:00:02]}  Nf6 {[%clk 0:00:06]} 74. Bb8 {[%clk 0:00:03]}  Ne4+ {[%clk 0:00:06]} 75. Kf3 {[%clk 0:00:03]}  Nd2+ {[%clk 0:00:06]} 76. Kg3 {[%clk 0:00:03]}  Nc4 {[%clk 0:00:06]} 77. Kh3 {[%clk 0:00:03]}  Kh6 {[%clk 0:00:06]} 78. Kh4 {[%clk 0:00:03]}  Ne3 {[%clk 0:00:04]} 79. Kg3 {[%clk 0:00:03]}  Kg7 {[%clk 0:00:04]} 80. Kf3 {[%clk 0:00:04]}  Ng4 {[%clk 0:00:03]} 81. Bc7 {[%clk 0:00:03]}  Kf6 {[%clk 0:00:03]} 82. Bb8 {[%clk 0:00:03]}  Ke6 {[%clk 0:00:04]} 83. Kg3 {[%clk 0:00:04]}  Nf6 {[%clk 0:00:03]} 84. Kh4 {[%clk 0:00:03]}  Ne4 {[%clk 0:00:04]} 85. Bc7 {[%clk 0:00:03]}  Kd5 {[%clk 0:00:04]} 86. Bb8 {[%clk 0:00:03]}  Kd4 {[%clk 0:00:04]} 87. Bc7 {[%clk 0:00:03]}  Ke3 {[%clk 0:00:04]} 88. Bb8 {[%clk 0:00:04]}  Kf3 {[%clk 0:00:04]} 89. Bc7 {[%clk 0:00:04]}  Nf6 {[%clk 0:00:02]} 90. Kg5 {[%clk 0:00:04]}  Nd5 {[%clk 0:00:02]} 91. Bb8 {[%clk 0:00:05]}  Ne7 {[%clk 0:00:02]} 92. Kf6 {[%clk 0:00:05]}  Nc6 {[%clk 0:00:02]} 93. Kxg6 {[%clk 0:00:04]}  Kg4 {[%clk 0:00:01]} 94. Bc7 {[%clk 0:00:03]}  Nd4 {[%clk 0:00:01]} 95. Kf6 {[%clk 0:00:03]}  Nb5 {[%clk 0:00:01]} 96. Bb8 {[%clk 0:00:03]}  Nd4 {[%clk 0:00:01]} 97. Kg6 {[%clk 0:00:03]}  Ne2 {[%clk 0:00:01]} 98. Kf6 {[%clk 0:00:04]}  Nxf4 {[%clk 0:00:01]} 99. Kg7 {[%clk 0:00:03]}  Nd3 {[%clk 0:00:00]} 100. Kf6 {[%clk 0:00:03]} 1/2-1/2


[Site "https://www.chess.com"]

[Event "Titled Tuesday Blitz July 11 Late 2023"]
[White "Mindhunter08"]
[Black "Bogaudinov, Rushan"]
[BlackFideId "4129288"]
[WhiteElo "2507"]
[BlackElo "2384"]
[Result "1-0"]
[Round "9"]
[TimeControl "180+2"]
[Date "2023.07.11"]
[WhiteClock "0:00:13"]
[BlackClock "0:00:03"]
[Board "75"]

1. e4 {[%clk 0:02:55]}  c5 {[%clk 0:02:07]} 2. Nf3 {[%clk 0:02:55]}  e6 {[%clk 0:02:06]} 3. g3 {[%clk 0:02:55]}  d5 {[%clk 0:02:03]} 4. exd5 {[%clk 0:02:56]}  Qxd5 {[%clk 0:02:03]} 5. Bg2 {[%clk 0:02:56]}  Nf6 {[%clk 0:02:03]} 6. O-O {[%clk 0:02:53]}  Nc6 {[%clk 0:02:03]} 7. Re1 {[%clk 0:02:53]}  Qd8 {[%clk 0:02:00]} 8. d3 {[%clk 0:02:50]}  Be7 {[%clk 0:01:59]} 9. Nc3 {[%clk 0:02:42]}  O-O {[%clk 0:01:59]} 10. Bf4 {[%clk 0:02:32]}  a6 {[%clk 0:01:57]} 11. a4 {[%clk 0:02:32]}  Nd5 {[%clk 0:01:53]} 12. Bd2 {[%clk 0:02:32]}  Bf6 {[%clk 0:01:51]} 13. Qc1 {[%clk 0:02:31]}  Nxc3 {[%clk 0:01:40]} 14. Bxc3 {[%clk 0:02:26]}  Nd4 {[%clk 0:01:32]} 15. Nd2 {[%clk 0:02:16]}  Qc7 {[%clk 0:01:29]} 16. Ne4 {[%clk 0:02:15]}  Be7 {[%clk 0:01:26]} 17. Bd2 {[%clk 0:02:11]}  Bd7 {[%clk 0:01:21]} 18. Qd1 {[%clk 0:01:43]}  Bc6 {[%clk 0:01:15]} 19. c3 {[%clk 0:01:39]}  Nf5 {[%clk 0:01:14]} 20. Qh5 {[%clk 0:01:34]}  Rad8 {[%clk 0:00:59]} 21. g4 {[%clk 0:01:30]}  g6 {[%clk 0:00:29]} 22. Qh3 {[%clk 0:01:27]}  Bxe4 {[%clk 0:00:20]} 23. Bxe4 {[%clk 0:01:10]}  Nd6 {[%clk 0:00:20]} 24. Bh6 {[%clk 0:01:07]}  Rfe8 {[%clk 0:00:19]} 25. Bg2 {[%clk 0:01:04]}  Bf6 {[%clk 0:00:19]} 26. Rad1 {[%clk 0:01:03]}  Bg7 {[%clk 0:00:19]} 27. Bf4 {[%clk 0:01:02]}  Qc8 {[%clk 0:00:17]} 28. Qg3 {[%clk 0:00:58]}  Qd7 {[%clk 0:00:13]} 29. h4 {[%clk 0:00:59]}  Nc8 {[%clk 0:00:11]} 30. h5 {[%clk 0:00:53]}  Qxa4 {[%clk 0:00:10]} 31. Qf3 {[%clk 0:00:53]}  Ne7 {[%clk 0:00:09]} 32. Bg5 {[%clk 0:00:50]}  Qc6 {[%clk 0:00:07]} 33. Qg3 {[%clk 0:00:34]}  Qd7 {[%clk 0:00:07]} 34. h6 {[%clk 0:00:33]}  Bh8 {[%clk 0:00:07]} 35. Qf4 {[%clk 0:00:31]}  Rc8 {[%clk 0:00:07]} 36. Bf6 {[%clk 0:00:28]}  Nd5 {[%clk 0:00:06]} 37. Bxd5 {[%clk 0:00:29]}  exd5 {[%clk 0:00:05]} 38. Bxh8 {[%clk 0:00:28]}  f5 {[%clk 0:00:05]} 39. Bf6 {[%clk 0:00:19]}  Kf7 {[%clk 0:00:04]} 40. Bg5 {[%clk 0:00:19]}  Rxe1+ {[%clk 0:00:03]} 41. Rxe1 {[%clk 0:00:19]}  Re8 {[%clk 0:00:03]} 42. Rxe8 {[%clk 0:00:18]}  Qxe8 {[%clk 0:00:04]} 43. Qc7+ {[%clk 0:00:18]}  Ke6 {[%clk 0:00:03]} 44. f4 {[%clk 0:00:15]}  fxg4 {[%clk 0:00:02]} 45. Qe5+ {[%clk 0:00:15]}  Kd7 {[%clk 0:00:02]} 46. Qxe8+ {[%clk 0:00:14]}  Kxe8 {[%clk 0:00:03]} 47. Kf2 {[%clk 0:00:14]}  b5 {[%clk 0:00:02]} 48. Kg3 {[%clk 0:00:14]}  a5 {[%clk 0:00:02]} 49. Kxg4 {[%clk 0:00:11]}  b4 {[%clk 0:00:02]} 50. cxb4 {[%clk 0:00:11]}  cxb4 {[%clk 0:00:02]} 51. f5 {[%clk 0:00:12]}  gxf5+ {[%clk 0:00:01]} 52. Kxf5 {[%clk 0:00:13]}  a4 {[%clk 0:00:01]} 53. Ke5 {[%clk 0:00:09]}  d4 {[%clk 0:00:02]} 54. Kxd4 {[%clk 0:00:10]}  a3 {[%clk 0:00:02]} 55. bxa3 {[%clk 0:00:10]}  bxa3 {[%clk 0:00:02]} 56. Kc3 {[%clk 0:00:10]}  a2 {[%clk 0:00:03]} 57. Kb2 {[%clk 0:00:11]}  Kf7 {[%clk 0:00:03]} 58. Kxa2 {[%clk 0:00:11]}  Kg6 {[%clk 0:00:04]} 59. Bc1 {[%clk 0:00:10]}  Kf5 {[%clk 0:00:05]} 60. Kb3 {[%clk 0:00:11]}  Ke5 {[%clk 0:00:05]} 61. Kc4 {[%clk 0:00:12]}  Kd6 {[%clk 0:00:03]} 62. Kd4 {[%clk 0:00:13]} 1-0


[Site "https://www.chess.com"]

[Event "Titled Tuesday Blitz July 11 Late 2023"]
[White "Antonio, Jorge Carlos"]
[Black "JERO-8914"]
[WhiteFideId "113190"]
[WhiteElo "2317"]
[BlackElo "2480"]
[Result "0-1"]
[Round "9"]
[TimeControl "180+2"]
[Date "2023.07.11"]
[WhiteClock "0:00:01"]
[BlackClock "0:02:00"]
[Board "79"]

1. d4 {[%clk 0:03:00]}  Nf6 {[%clk 0:02:54]} 2. Nf3 {[%clk 0:03:00]}  e6 {[%clk 0:02:53]} 3. Bf4 {[%clk 0:02:56]}  d5 {[%clk 0:02:52]} 4. e3 {[%clk 0:02:56]}  c5 {[%clk 0:02:52]} 5. c3 {[%clk 0:02:55]}  Nc6 {[%clk 0:02:52]} 6. Nbd2 {[%clk 0:02:55]}  Bd6 {[%clk 0:02:52]} 7. Ne5 {[%clk 0:02:54]}  O-O {[%clk 0:02:52]} 8. Nxc6 {[%clk 0:02:53]}  bxc6 {[%clk 0:02:52]} 9. Bxd6 {[%clk 0:02:53]}  Qxd6 {[%clk 0:02:52]} 10. Nf3 {[%clk 0:02:52]}  Rb8 {[%clk 0:02:50]} 11. b3 {[%clk 0:02:52]}  cxd4 {[%clk 0:02:50]} 12. cxd4 {[%clk 0:02:48]}  c5 {[%clk 0:02:50]} 13. dxc5 {[%clk 0:02:45]}  Qxc5 {[%clk 0:02:51]} 14. Rc1 {[%clk 0:02:45]}  Qa5+ {[%clk 0:02:50]} 15. Qd2 {[%clk 0:02:44]}  Qxd2+ {[%clk 0:02:51]} 16. Kxd2 {[%clk 0:02:44]}  Ne4+ {[%clk 0:02:50]} 17. Ke1 {[%clk 0:02:43]}  Bd7 {[%clk 0:02:51]} 18. Bd3 {[%clk 0:02:43]}  Nd6 {[%clk 0:02:48]} 19. Kd2 {[%clk 0:02:42]}  Rfc8 {[%clk 0:02:47]} 20. Rxc8+ {[%clk 0:02:41]}  Rxc8 {[%clk 0:02:48]} 21. Rc1 {[%clk 0:02:40]}  Rxc1 {[%clk 0:02:48]} 22. Kxc1 {[%clk 0:02:40]}  f6 {[%clk 0:02:49]} 23. a3 {[%clk 0:02:34]}  e5 {[%clk 0:02:48]} 24. Be2 {[%clk 0:02:29]}  Ne4 {[%clk 0:02:45]} 25. Kb2 {[%clk 0:02:20]}  Nxf2 {[%clk 0:02:45]} 26. b4 {[%clk 0:02:20]}  Ng4 {[%clk 0:02:39]} 27. e4 {[%clk 0:02:12]}  dxe4 {[%clk 0:02:32]} 28. Nd2 {[%clk 0:02:11]}  Nf2 {[%clk 0:02:28]} 29. Kb3 {[%clk 0:02:07]}  e3 {[%clk 0:02:26]} 30. Bc4+ {[%clk 0:02:06]}  Kf8 {[%clk 0:02:26]} 31. Nf3 {[%clk 0:02:03]}  g5 {[%clk 0:02:19]} 32. h3 {[%clk 0:02:02]}  h5 {[%clk 0:02:19]} 33. a4 {[%clk 0:02:01]}  g4 {[%clk 0:02:19]} 34. hxg4 {[%clk 0:02:01]}  hxg4 {[%clk 0:02:20]} 35. Ne1 {[%clk 0:02:00]}  f5 {[%clk 0:02:16]} 36. b5 {[%clk 0:01:59]}  f4 {[%clk 0:02:16]} 37. a5 {[%clk 0:01:58]}  Ne4 {[%clk 0:02:15]} 38. Bd5 {[%clk 0:01:55]}  Nd2+ {[%clk 0:02:12]} 39. Kb4 {[%clk 0:01:54]}  Ke7 {[%clk 0:02:11]} 40. b6 {[%clk 0:01:54]}  axb6 {[%clk 0:02:11]} 41. axb6 {[%clk 0:01:55]}  Kd6 {[%clk 0:02:11]} 42. b7 {[%clk 0:01:45]}  Kc7 {[%clk 0:02:10]} 43. Kc5 {[%clk 0:01:41]}  Bf5 {[%clk 0:02:07]} 44. b8=Q+ {[%clk 0:01:37]}  Kxb8 {[%clk 0:02:07]} 45. Kd6 {[%clk 0:01:37]}  e4 {[%clk 0:02:07]} 46. Ke5 {[%clk 0:01:36]}  f3 {[%clk 0:02:07]} 47. gxf3 {[%clk 0:01:28]}  gxf3 {[%clk 0:02:02]} 48. Nxf3 {[%clk 0:00:20]}  exf3 {[%clk 0:02:00]} 49. Bxf3 {[%clk 0:00:04]}  Nxf3+ {[%clk 0:02:00]} 50. Kf4 {[%clk 0:00:03]}  e2 {[%clk 0:02:00]} 51. Kxf3 {[%clk 0:00:03]}  e1=Q {[%clk 0:02:00]} 52. Kf4 {[%clk 0:00:01]}  Qe4+ {[%clk 0:02:00]} 0-1


[Site "https://www.chess.com"]

[Event "Titled Tuesday Blitz July 11 Late 2023"]
[White "Bruedigam, Martin"]
[Black "BrandonJiang123456"]
[WhiteFideId "24608033"]
[WhiteElo "2539"]
[BlackElo "2251"]
[Result "1-0"]
[Round "9"]
[TimeControl "180+2"]
[Date "2023.07.11"]
[WhiteClock "0:02:01"]
[BlackClock "0:00:09"]
[Board "83"]

1. c4 {[%clk 0:03:00]}  e6 {[%clk 0:02:14]} 2. b3 {[%clk 0:02:55]}  f5 {[%clk 0:02:11]} 3. Bb2 {[%clk 0:02:55]}  Nf6 {[%clk 0:02:11]} 4. d3 {[%clk 0:02:51]}  Be7 {[%clk 0:02:12]} 5. Nd2 {[%clk 0:02:52]}  O-O {[%clk 0:02:12]} 6. g3 {[%clk 0:02:52]}  d6 {[%clk 0:02:12]} 7. Bg2 {[%clk 0:02:53]}  e5 {[%clk 0:02:13]} 8. Ngf3 {[%clk 0:02:53]}  Nc6 {[%clk 0:02:13]} 9. O-O {[%clk 0:02:53]}  Kh8 {[%clk 0:02:11]} 10. e3 {[%clk 0:02:54]}  Be6 {[%clk 0:02:11]} 11. d4 {[%clk 0:02:50]}  e4 {[%clk 0:02:11]} 12. d5 {[%clk 0:02:39]}  exf3 {[%clk 0:02:10]} 13. Nxf3 {[%clk 0:02:36]}  Bd7 {[%clk 0:02:06]} 14. dxc6 {[%clk 0:02:35]}  bxc6 {[%clk 0:02:07]} 15. Nd4 {[%clk 0:02:33]}  Qe8 {[%clk 0:02:05]} 16. Re1 {[%clk 0:02:27]}  Rb8 {[%clk 0:01:57]} 17. Rc1 {[%clk 0:02:22]}  c5 {[%clk 0:01:53]} 18. Ne2 {[%clk 0:02:22]}  Bc6 {[%clk 0:01:45]} 19. Bxc6 {[%clk 0:02:18]}  Qxc6 {[%clk 0:01:44]} 20. Bxf6 {[%clk 0:02:19]}  Bxf6 {[%clk 0:01:44]} 21. Nf4 {[%clk 0:02:19]}  Qe8 {[%clk 0:01:21]} 22. Nd5 {[%clk 0:02:17]}  Qf7 {[%clk 0:01:22]} 23. Qd3 {[%clk 0:02:13]}  Bd8 {[%clk 0:01:03]} 24. f4 {[%clk 0:02:11]}  c6 {[%clk 0:01:03]} 25. Nc3 {[%clk 0:02:10]}  Bc7 {[%clk 0:01:04]} 26. e4 {[%clk 0:02:09]}  fxe4 {[%clk 0:00:56]} 27. Nxe4 {[%clk 0:02:08]}  Rbd8 {[%clk 0:00:56]} 28. Ng5 {[%clk 0:02:06]}  Qf5 {[%clk 0:00:21]} 29. Qxf5 {[%clk 0:02:04]}  Rxf5 {[%clk 0:00:21]} 30. Ne6 {[%clk 0:02:04]}  Ba5 {[%clk 0:00:10]} 31. Nxd8 {[%clk 0:02:04]}  Bxe1 {[%clk 0:00:10]} 32. Rxe1 {[%clk 0:02:04]}  h6 {[%clk 0:00:11]} 33. Nxc6 {[%clk 0:02:01]}  d5 {[%clk 0:00:09]} 34. Ne7 {[%clk 0:02:01]} 1-0


[Site "https://www.chess.com"]